bitfinex/quotes_BTCUSD_20241128
["timestamp","ask_amount","ask_price","bid_price","bid_amount"]
[1732769032582,0.0018579,95801.0,95800.0,3.41660828]
[1732769032805,0.0018579,95801.0,95800.0,3.65001845]
[1732769033046,0.0018579,95801.0,95800.0,3.54563445]
[1732769033245,0.0008579,95801.0,95800.0,3.53963445]
[1732769033654,0.0008579,95801.0,95800.0,3.54463445]
[1732769033867,0.0008579,95801.0,95800.0,3.53963445]
[1732769034281,0.0008579,95801.0,95800.0,3.54363445]
[1732769034715,0.0008579,95801.0,95800.0,3.53963445]
[1732769034920,0.0008579,95801.0,95800.0,3.64301845]
[1732769035129,0.0008579,95801.0,95800.0,3.40960828]
[1732769035338,0.0018579,95801.0,95800.0,3.41560828]
[1732769036175,0.000858,95805.0,95804.0,0.104379]
[1732769036392,0.000858,95805.0,95804.0,0.2090715]
[1732769037737,0.000858,95805.0,95804.0,0.3590715]
[1732769037958,0.000858,95805.0,95804.0,0.36322421]
[1732769038169,0.000858,95805.0,95804.0,0.37749527]
[1732769038386,0.000858,95805.0,95804.0,0.37149527]
[1732769038822,0.002858,95805.0,95804.0,0.38549527]
[1732769039290,0.000858,95805.0,95804.0,0.37149527]
[1732769039500,0.001858,95805.0,95804.0,0.38049527]
[1732769039943,0.000858,95805.0,95804.0,0.37149527]
[1732769040158,0.001858,95805.0,95804.0,0.38049527]
[1732769040436,0.001858,95805.0,95804.0,0.11184521]
[1732769040637,0.001858,95805.0,95804.0,0.009]
[1732769040846,0.106236,95805.0,95804.0,0.016]
[1732769041275,0.106236,95805.0,95804.0,0.009]
[1732769042117,0.106236,95805.0,95804.0,0.016]
[1732769042325,0.106236,95805.0,95804.0,0.10934105]
[1732769042740,0.106236,95805.0,95804.0,0.10933867]
[1732769045162,0.106236,95805.0,95804.0,0.016]
[1732769046047,0.104383,95801.0,95800.0,3.30122428]
[1732769046676,0.104383,95801.0,95800.0,3.30900813]
[1732769048435,0.104383,95801.0,95800.0,3.31400813]
[1732769048846,0.104383,95801.0,95800.0,3.31800813]
[1732769050581,0.104383,95801.0,95800.0,3.31629113]
[1732769051011,0.104383,95801.0,95800.0,3.30850728]
[1732769053480,0.104383,95801.0,95800.0,3.30845298]
[1732769054782,0.104383,95801.0,95800.0,3.30345298]
[1732769054996,0.104383,95801.0,95800.0,3.29945298]
[1732769055209,0.105383,95801.0,95800.0,3.29945298]
[1732769059459,0.03522757,95801.0,95800.0,3.29945298]
[1732769059683,0.03522757,95801.0,95800.0,3.30045298]
[1732769059684,0.104383,95801.0,95800.0,3.30045298]
[1732769060724,0.104383,95801.0,95800.0,3.30145298]
[1732769061340,0.104383,95801.0,95800.0,3.30045298]
[1732769061556,0.104383,95801.0,95800.0,3.30145298]
[1732769063146,0.000858,95805.0,95800.0,3.30145298]
[1732769063355,0.104382,95802.0,95800.0,3.30145298]
[1732769063801,0.208759,95804.0,95800.0,3.30145298]
[1732769064011,0.208759,95804.0,95800.0,3.30045298]
[1732769064229,0.1060988,95801.0,95800.0,3.30045298]
[1732769066151,0.1060988,95801.0,95800.0,3.30145298]
[1732769067413,0.1060988,95801.0,95800.0,3.30045298]
[1732769067624,0.1060988,95801.0,95800.0,3.30145298]
[1732769071971,0.1060988,95801.0,95800.0,3.30923338]
[1732769074620,0.1060988,95801.0,95800.0,3.30145298]
[1732769075072,0.1060988,95801.0,95800.0,3.30923593]
[1732769075701,0.1060988,95801.0,95800.0,3.30923679]
[1732769076147,0.1060988,95801.0,95800.0,3.30145298]
[1732769078282,0.0017158,95801.0,95800.0,3.30145298]
[1732769078524,0.0017158,95801.0,95800.0,3.40583698]
[1732769078759,0.0017158,95801.0,95800.0,3.54574012]
[1732769078986,0.0017158,95801.0,95800.0,3.40583698]
[1732769079421,0.0017158,95801.0,95800.0,3.40383698]
[1732769079849,0.0017158,95801.0,95800.0,3.40583698]
[1732769080102,0.0017158,95801.0,95800.0,3.40483698]
[1732769080318,0.0027158,95801.0,95800.0,3.41183698]
[1732769080736,0.0017158,95801.0,95800.0,3.40483698]
[1732769080940,0.0027158,95801.0,95800.0,3.41183698]
[1732769081149,0.0027158,95801.0,95800.0,3.41083698]
[1732769081596,0.0027158,95801.0,95800.0,3.41583698]
[1732769082008,0.0027158,95801.0,95800.0,3.66368219]
[1732769082428,0.0027158,95801.0,95800.0,3.66868219]
[1732769095697,0.0027158,95801.0,95800.0,3.90144945]
[1732769095932,0.0027158,95801.0,95800.0,3.66868219]
[1732769096586,0.0027158,95801.0,95800.0,3.9014364]
[1732769097722,0.0027158,95801.0,95800.0,3.66868219]
[1732769099914,0.0027158,95801.0,95800.0,3.9014364]
[1732769100583,0.0027158,95801.0,95800.0,3.66868219]
[1732769100807,0.0027158,95801.0,95800.0,3.46145298]
[1732769101080,0.0027158,95801.0,95800.0,3.64681743]
[1732769101311,0.0027158,95801.0,95800.0,3.46054498]
[1732769101312,0.1070988,95801.0,95800.0,3.46054498]
[1732769101820,0.0027158,95801.0,95800.0,3.46054498]
[1732769102063,0.1070988,95801.0,95800.0,3.60026556]
[1732769102295,0.1070988,95801.0,95800.0,3.46054498]
[1732769102534,0.0027158,95801.0,95800.0,3.46054498]
[1732769102775,0.0027158,95801.0,95800.0,3.60029356]
[1732769103000,0.0027158,95801.0,95800.0,3.60029402]
[1732769103222,0.0027158,95801.0,95800.0,3.46054498]
[1732769103698,0.1070988,95801.0,95800.0,3.31054498]
[1732769103910,0.1070988,95801.0,95800.0,3.45030405]
[1732769104160,0.1070988,95801.0,95800.0,3.31054498]
[1732769110672,0.12112476,95801.0,95800.0,3.31054498]
[1732769111168,0.1070988,95801.0,95800.0,3.31054498]
[1732769114482,0.23484321,95801.0,95800.0,3.31054498]
[1732769114713,0.23294401,95801.0,95800.0,3.31054498]
[1732769115412,0.1070988,95801.0,95800.0,3.30554498]
[1732769115859,0.1060988,95801.0,95800.0,3.29954498]
[1732769116276,0.1060988,95801.0,95800.0,3.29854498]
[1732769116970,0.1070988,95801.0,95800.0,3.29854498]
[1732769117222,0.1060988,95801.0,95800.0,3.29854498]
[1732769117669,0.1090988,95801.0,95800.0,3.29854498]
[1732769118980,0.1070988,95801.0,95800.0,3.29854498]
[1732769119421,0.1080988,95801.0,95800.0,3.29854498]
[1732769119639,0.1060988,95801.0,95800.0,3.29854498]
[1732769120064,0.1080988,95801.0,95800.0,3.29854498]
[1732769120320,0.1060988,95801.0,95800.0,3.29854498]
[1732769120761,0.1070988,95801.0,95800.0,3.29854498]
[1732769122095,0.1060988,95801.0,95800.0,3.29854498]
[1732769122277,0.1080988,95801.0,95800.0,3.29854498]
[1732769122963,0.1060988,95801.0,95800.0,3.29854498]
[1732769123192,0.1070988,95801.0,95800.0,3.29854498]
[1732769123398,0.1060988,95801.0,95800.0,3.29854498]
[1732769123822,0.1080988,95801.0,95800.0,3.29854498]
[1732769125149,0.1060988,95801.0,95800.0,3.29854498]
[1732769125425,0.1070988,95801.0,95800.0,3.29854498]
[1732769126273,0.1060988,95801.0,95800.0,3.29854498]
[1732769126489,0.1080988,95801.0,95800.0,3.29854498]
[1732769126974,0.1060988,95801.0,95800.0,3.29854498]
[1732769127199,0.1070988,95801.0,95800.0,3.29854498]
[1732769128801,0.0027158,95801.0,95800.0,3.40292898]
[1732769129003,0.0027158,95801.0,95800.0,3.50577419]
[1732769129217,0.0027158,95801.0,95800.0,3.65577419]
[1732769129918,0.0017158,95801.0,95800.0,3.84514805]
[1732769130341,0.0017158,95801.0,95800.0,3.84914805]
[1732769130803,0.0017158,95801.0,95800.0,3.84514805]
[1732769131222,0.0017158,95801.0,95800.0,3.85627023]
[1732769131665,0.0017158,95801.0,95800.0,3.86327023]
[1732769132098,0.0017158,95801.0,95800.0,3.85114805]
[1732769132099,0.0027158,95801.0,95800.0,3.85114805]
[1732769132319,0.0027158,95801.0,95800.0,3.41039019]
[1732769132531,0.0027158,95801.0,95800.0,3.30554498]
[1732769132532,0.1060988,95801.0,95800.0,3.30554498]
[1732769132760,0.1070988,95801.0,95800.0,3.31454498]
[1732769132969,0.1070988,95801.0,95800.0,3.30754498]
[1732769133157,0.1060988,95801.0,95800.0,3.29854498]
[1732769133434,0.0027158,95801.0,95800.0,3.30754498]
[1732769133662,0.0027158,95801.0,95800.0,3.41192898]
[1732769133889,0.0027158,95801.0,95800.0,3.50577419]
[1732769133890,0.0017158,95801.0,95800.0,3.50577419]
[1732769134116,0.0017158,95801.0,95800.0,3.60400354]
[1732769134347,0.0017158,95801.0,95800.0,3.65060057]
[1732769134578,0.0017158,95801.0,95800.0,3.51677419]
[1732769135012,0.0017158,95801.0,95800.0,3.51077419]
[1732769135869,0.0017158,95801.0,95800.0,3.51377419]
[1732769136046,0.0017158,95801.0,95800.0,3.52456089]
[1732769136488,0.0027158,95801.0,95800.0,3.53156089]
[1732769137541,0.0027158,95801.0,95800.0,3.51777419]
[1732769138383,0.0027158,95801.0,95800.0,3.65764445]
[1732769139025,0.0027158,95801.0,95800.0,3.51777419]
[1732769139226,0.0027158,95801.0,95800.0,3.65764445]
[1732769140300,0.0027158,95801.0,95800.0,3.51777419]
[1732769140503,0.0027158,95801.0,95800.0,3.31054498]
[1732769140959,0.0027158,95801.0,95800.0,3.41492898]
[1732769141171,0.0027158,95801.0,95800.0,3.65767458]
[1732769141377,0.0027158,95801.0,95800.0,3.51777419]
[1732769144685,0.0027158,95801.0,95800.0,3.31054498]
[1732769144897,0.0027158,95801.0,95800.0,3.45047806]
[1732769145515,0.0027158,95801.0,95800.0,3.31054498]
[1732769145738,0.0027158,95801.0,95800.0,3.55486206]
[1732769145993,0.0027158,95801.0,95800.0,3.31054498]
[1732769146201,0.0027158,95801.0,95800.0,3.45049145]
[1732769147735,0.0027158,95801.0,95800.0,3.55487545]
[1732769148156,0.0027158,95801.0,95800.0,3.41492898]
[1732769149935,0.0027158,95801.0,95800.0,3.60142266]
[1732769151890,0.0027158,95801.0,95800.0,3.41492898]
[1732769154076,0.0027158,95801.0,95800.0,3.31054498]
[1732769154284,0.0027158,95801.0,95800.0,3.45048734]
[1732769154488,0.0027158,95801.0,95800.0,3.31054498]
[1732769154698,0.0027158,95801.0,95800.0,3.55486735]
[1732769154937,0.0027158,95801.0,95800.0,3.41492898]
[1732769156477,0.0027158,95801.0,95800.0,3.55479921]
[1732769156689,0.0027158,95801.0,95800.0,3.41492898]
[1732769159529,0.0027158,95801.0,95800.0,3.55472]
[1732769161306,0.0027158,95801.0,95800.0,3.41492898]
[1732769164496,0.0027158,95801.0,95800.0,3.31054498]
[1732769165438,0.1070988,95801.0,95800.0,3.31054498]
[1732769172597,0.23484321,95801.0,95800.0,3.31054498]
[1732769172825,0.27451105,95801.0,95800.0,3.30354498]
[1732769173059,0.27451105,95801.0,95800.0,3.29854498]
[1732769173278,0.27451105,95801.0,95800.0,3.30354498]
[1732769173485,0.24194401,95801.0,95800.0,3.29854498]
[1732769173700,0.27449056,95801.0,95800.0,3.29854498]
[1732769173926,0.45551303,95801.0,95800.0,3.29854498]
[1732769174179,0.46051303,95801.0,95800.0,3.29854498]
[1732769174420,0.46936165,95801.0,95800.0,3.30154498]
[1732769175047,0.46936165,95801.0,95800.0,3.29854498]
[1732769175260,0.47336165,95801.0,95800.0,3.29854498]
[1732769175688,0.46836165,95801.0,95800.0,3.29854498]
[1732769175892,0.46836165,95801.0,95800.0,3.21503698]
[1732769176110,0.47636165,95801.0,95800.0,3.19515998]
[1732769176770,0.47636165,95801.0,95800.0,3.10153297]
[1732769176981,0.47636165,95801.0,95800.0,2.99714797]
[1732769177191,0.66384047,95801.0,95800.0,2.99714797]
[1732769177410,0.61679445,95801.0,95800.0,2.97314797]
[1732769177632,0.47236165,95801.0,95800.0,2.95214797]
[1732769177851,0.57392985,95801.0,95800.0,2.89051697]
[1732769178152,0.48036165,95801.0,95800.0,2.84876297]
[1732769178383,0.47236165,95801.0,95800.0,2.84776297]
[1732769178597,0.46436165,95801.0,95800.0,2.84676297]
[1732769178808,0.48136165,95801.0,95800.0,2.82788597]
[1732769179016,0.4488151,95801.0,95800.0,2.74437797]
[1732769179482,0.9926151,95801.0,95800.0,2.74437797]
[1732769179897,0.9926151,95801.0,95800.0,2.66086997]
[1732769180104,0.9926151,95801.0,95800.0,2.63999297]
[1732769180752,0.9846151,95801.0,95800.0,2.63899297]
[1732769180947,0.9846151,95801.0,95800.0,2.61811597]
[1732769181167,0.9916151,95801.0,95800.0,2.61911597]
[1732769181382,0.9916151,95801.0,95800.0,2.57736197]
[1732769181605,0.9846151,95801.0,95800.0,2.53460797]
[1732769181817,0.9756151,95801.0,95800.0,2.53360797]
[1732769182059,0.9826151,95801.0,95800.0,2.53460797]
[1732769182267,0.9826151,95801.0,95800.0,2.51373097]
[1732769182481,0.9756151,95801.0,95800.0,2.42922297]
[1732769182693,0.9846151,95801.0,95800.0,2.43022297]
[1732769182907,0.9756151,95801.0,95800.0,2.26085797]
[1732769183152,0.9756151,95801.0,95800.0,2.1158607]
[1732769183366,0.9756151,95801.0,95800.0,2.1168607]
[1732769183367,0.9846151,95801.0,95800.0,2.1168607]
[1732769183798,0.9846151,95801.0,95800.0,2.0959837]
[1732769184025,0.9916151,95801.0,95800.0,2.0552297]
[1732769184265,0.9916151,95801.0,95800.0,2.0134757]
[1732769184511,0.9846151,95801.0,95800.0,2.0124757]
[1732769184922,0.9916151,95801.0,95800.0,1.9090907]
[1732769185352,0.9846151,95801.0,95800.0,1.9080907]
[1732769185565,0.9756151,95801.0,95800.0,1.9070907]
[1732769185807,0.9826151,95801.0,95800.0,1.9080907]
[1732769186024,0.02,95797.0,95796.0,4e-07]
[1732769186253,0.8182,95785.0,95784.0,0.001715]
[1732769186468,0.94404521,95785.0,95784.0,0.001715]
[1732769186677,0.95275746,95785.0,95784.0,0.001715]
[1732769188915,0.95875746,95785.0,95784.0,1e-06]
[1732769189822,0.96775746,95785.0,95784.0,0.001001]
[1732769190050,0.96775746,95785.0,95784.0,0.000961]
[1732769190272,0.98278242,95785.0,95784.0,1e-06]
[1732769190706,1.00365251,95785.0,95784.0,1e-06]
[1732769191157,1.00365251,95785.0,95763.0,0.00021523]
[1732769191158,0.104423,95764.0,95763.0,0.00021523]
[1732769191367,0.23086227,95764.0,95763.0,0.00021523]
[1732769191605,0.38846814,95764.0,95763.0,0.00021523]
[1732769192741,0.38946814,95764.0,95763.0,0.00021523]
[1732769193159,0.39946814,95764.0,95763.0,0.00021523]
[1732769194060,0.39846814,95764.0,95763.0,0.00021523]
[1732769194482,0.39846814,95764.0,95763.0,0.00121523]
[1732769194483,0.40746814,95764.0,95763.0,0.00121523]
[1732769195348,0.41246814,95764.0,95763.0,0.00121523]
[1732769195768,0.40346814,95764.0,95763.0,0.00021523]
[1732769195983,0.42480138,95764.0,95763.0,0.00021523]
[1732769196194,0.43380138,95764.0,95763.0,0.00121523]
[1732769196659,1.00156032,95764.0,95763.0,0.00121523]
[1732769197775,0.99656032,95764.0,95763.0,0.00121523]
[1732769198188,1.00456032,95764.0,95763.0,0.00221523]
[1732769199027,0.99556032,95764.0,95763.0,0.00121523]
[1732769199238,0.97556032,95764.0,95763.0,0.00121523]
[1732769199452,0.98456032,95764.0,95763.0,0.00121523]
[1732769199670,0.96322708,95764.0,95763.0,0.00121523]
[1732769200123,0.96422708,95764.0,95763.0,0.00121523]
[1732769200571,0.42942708,95764.0,95763.0,0.00121523]
[1732769200799,0.42042708,95764.0,95763.0,0.00121523]
[1732769201023,0.43042708,95764.0,95763.0,0.00121523]
[1732769201502,0.42242708,95764.0,95763.0,0.00021523]
[1732769201945,0.42842708,95764.0,95763.0,0.00021523]
[1732769202361,0.42242708,95764.0,95763.0,0.00021523]
[1732769202800,0.42942708,95764.0,95763.0,0.00021523]
[1732769203007,0.43742708,95764.0,95763.0,0.00021523]
[1732769203229,0.43042708,95764.0,95763.0,0.00021523]
[1732769203449,0.97422708,95764.0,95763.0,0.00021523]
[1732769203673,1.00665781,95764.0,95763.0,0.00021523]
[1732769203923,0.99865781,95764.0,95763.0,0.00021523]
[1732769204163,0.99865781,95764.0,95728.0,0.0017158]
[1732769204164,0.297424,95763.0,95762.0,3e-08]
[1732769204376,0.43269994,95763.0,95762.0,3e-08]
[1732769204584,0.44101599,95763.0,95762.0,3e-08]
[1732769205254,0.124426,95761.0,95760.0,0.00167603]
[1732769205466,0.433296,95761.0,95760.0,0.00167603]
[1732769205669,0.44101545,95761.0,95760.0,0.00167603]
[1732769206521,0.818235,95753.0,95728.0,0.0017158]
[1732769206748,0.97651094,95753.0,95728.0,0.0017158]
[1732769206956,0.98478733,95753.0,95728.0,0.0017158]
[1732769208114,1.0058608,95753.0,95728.0,0.0017158]
[1732769208320,1.0098608,95753.0,95728.0,0.0017158]
[1732769209222,1.0168608,95753.0,95728.0,0.0017158]
[1732769210521,1.03089882,95753.0,95728.0,0.0017158]
[1732769210756,1.01089882,95753.0,95728.0,0.0017158]
[1732769210968,0.98789882,95753.0,95728.0,0.0017158]
[1732769212492,0.44409882,95753.0,95728.0,0.0017158]
[1732769226082,0.45409882,95753.0,95728.0,0.0017158]
[1732769226347,0.47709882,95753.0,95728.0,0.0017158]
[1732769227296,0.48709882,95753.0,95728.0,0.0017158]
[1732769230000,0.58074977,95753.0,95728.0,0.0017158]
[1732769230222,0.48709882,95753.0,95728.0,0.0017158]
[1732769230657,1.17150042,95753.0,95728.0,0.0017158]
[1732769231556,1.21834241,95753.0,95728.0,0.0017158]
[1732769231760,1.03089882,95753.0,95728.0,0.0017158]
[1732769232663,1.32117387,95753.0,95728.0,0.0017158]
[1732769232893,1.21834241,95753.0,95728.0,0.0017158]
[1732769233550,1.03089882,95753.0,95728.0,0.0017158]
[1732769235557,1.2652033,95753.0,95728.0,0.0017158]
[1732769235771,1.03089882,95753.0,95728.0,0.0017158]
[1732769237361,1.21846704,95753.0,95728.0,0.0017158]
[1732769237582,1.03089882,95753.0,95728.0,0.0017158]
[1732769237785,1.21848179,95753.0,95728.0,0.0017158]
[1732769237992,1.03089882,95753.0,95728.0,0.0017158]
[1732769238665,1.26539078,95753.0,95728.0,0.0017158]
[1732769238873,1.03089882,95753.0,95728.0,0.0017158]
[1732769245105,0.274437,95751.0,95728.0,0.0017158]
[1732769245422,0.43271294,95751.0,95728.0,0.0017158]
[1732769245629,0.98472887,95751.0,95728.0,0.0017158]
[1732769247062,0.99072887,95751.0,95728.0,0.0017158]
[1732769248121,0.99372887,95751.0,95728.0,0.0017158]
[1732769266457,0.99372887,95751.0,95750.0,0.00163128]
[1732769271718,1.27543865,95751.0,95750.0,0.00163128]
[1732769273694,0.99372887,95751.0,95750.0,0.00163128]
[1732769274138,0.99544547,95751.0,95750.0,0.00163128]
[1732769290811,0.254461,95729.0,95728.0,0.0017158]
[1732769291025,0.42273694,95729.0,95728.0,0.0017158]
[1732769291234,0.4310821,95729.0,95728.0,0.0017158]
[1732769292084,0.4330821,95729.0,95728.0,0.0017158]
[1732769292323,0.4380821,95729.0,95728.0,0.0017158]
[1732769292558,0.4310821,95729.0,95728.0,0.0017158]
[1732769292775,0.45148144,95729.0,95728.0,0.0017158]
[1732769293034,0.45748144,95729.0,95728.0,0.0027158]
[1732769293268,0.69226097,95729.0,95728.0,0.0027158]
[1732769293935,0.70126097,95729.0,95728.0,0.0027158]
[1732769294151,0.47994882,95729.0,95728.0,0.0027158]
[1732769294362,0.71469055,95729.0,95728.0,0.0027158]
[1732769294572,0.48994882,95729.0,95728.0,0.0027158]
[1732769296067,0.11448,95712.0,95711.0,0.0004]
[1732769296285,0.43335,95712.0,95711.0,0.0004]
[1732769296508,0.44103758,95712.0,95711.0,0.0004]
[1732769297165,0.67554581,95712.0,95711.0,0.0004]
[1732769297609,0.44103758,95712.0,95711.0,0.0004]
[1732769298054,0.45603758,95712.0,95711.0,0.0004]
[1732769298279,0.47682681,95712.0,95711.0,0.0004]
[1732769298695,0.47082681,95712.0,95711.0,0.0004]
[1732769298870,0.47882681,95712.0,95711.0,0.0004]
[1732769299294,0.6662699,95712.0,95711.0,0.0012583]
[1732769299757,1.2100699,95712.0,95711.0,0.0012583]
[1732769300281,1.02262681,95712.0,95711.0,0.0012583]
[1732769300728,1.2100699,95712.0,95711.0,0.0012583]
[1732769300954,1.02262681,95712.0,95711.0,0.0012583]
[1732769301173,1.02262681,95712.0,95704.0,0.0019658]
[1732769301174,0.297487,95705.0,95704.0,0.0019658]
[1732769301394,0.43276294,95705.0,95704.0,0.0019658]
[1732769301625,0.44088919,95705.0,95704.0,0.0019658]
[1732769302759,0.41745846,95705.0,95704.0,0.0019658]
[1732769302979,0.45494946,95705.0,95704.0,0.0019658]
[1732769304304,0.44993297,95705.0,95704.0,0.0019658]
[1732769304527,0.44093297,95705.0,95704.0,0.0019658]
[1732769304751,0.44993297,95705.0,95704.0,0.0019658]
[1732769304969,0.841292,95701.0,95700.0,0.00025]
[1732769305204,0.97661172,95701.0,95700.0,0.00025]
[1732769305469,0.98471362,95701.0,95700.0,0.00025]
[1732769305642,0.98471362,95701.0,95700.0,1e-06]
[1732769305878,1.07829615,95701.0,95700.0,1e-06]
[1732769306087,0.98471362,95701.0,95700.0,1e-06]
[1732769306322,0.99371362,95701.0,95700.0,1e-06]
[1732769306963,0.97401362,95701.0,95700.0,1e-06]
[1732769307640,0.98301362,95701.0,95700.0,1e-06]
[1732769308307,0.96501362,95701.0,95700.0,1e-06]
[1732769308514,0.98301362,95701.0,95700.0,1e-06]
[1732769308721,0.97401362,95701.0,95700.0,1e-06]
[1732769309153,0.98301362,95701.0,95700.0,1e-06]
[1732769309803,0.9967155,95701.0,95700.0,1e-06]
[1732769310906,0.9967155,95701.0,95700.0,0.0008586]
[1732769313568,0.96424099,95701.0,95700.0,0.0008586]
[1732769313774,0.96394099,95701.0,95700.0,0.0008586]
[1732769314236,0.94094099,95701.0,95700.0,0.0008586]
[1732769314442,0.92294099,95701.0,95700.0,0.0008586]
[1732769314655,0.37914099,95701.0,95700.0,0.0008586]
[1732769314867,0.39614099,95701.0,95700.0,0.0008586]
[1732769315079,0.38714099,95701.0,95700.0,0.0008586]
[1732769315292,0.22914099,95701.0,95700.0,0.0008586]
[1732769315567,0.23814099,95701.0,95700.0,0.0008586]
[1732769315783,0.23514099,95701.0,95700.0,0.0008586]
[1732769316256,0.23814099,95701.0,95700.0,0.0008586]
[1732769316475,0.37914099,95701.0,95700.0,0.0008586]
[1732769317631,0.40244099,95701.0,95700.0,0.0008586]
[1732769317877,0.41844099,95701.0,95700.0,0.0008586]
[1732769318711,0.40944099,95701.0,95700.0,0.0008586]
[1732769318918,0.40244099,95701.0,95700.0,0.0008586]
[1732769319125,0.41844099,95701.0,95700.0,0.0008586]
[1732769319746,0.41144099,95701.0,95700.0,0.0008586]
[1732769320776,0.95524099,95701.0,95700.0,0.0008586]
[1732769321199,0.96124099,95701.0,95700.0,0.0008586]
[1732769322664,0.96094099,95701.0,95700.0,0.0008586]
[1732769322912,0.93794099,95701.0,95700.0,0.0008586]
[1732769323836,0.39414099,95701.0,95700.0,0.0008586]
[1732769325782,0.104509,95685.0,95684.0,0.0087074]
[1732769326192,0.11258167,95685.0,95684.0,0.0087074]
[1732769327897,0.11658167,95685.0,95684.0,0.0087074]
[1732769328145,0.11658167,95685.0,95671.0,0.0004]
[1732769328146,0.5438,95727.0,95704.0,0.01]
[1732769328363,0.28343789,95736.0,95673.0,0.01]
[1732769328364,0.0017152,95728.0,95725.0,0.01]
[1732769329426,0.0017152,95728.0,95725.0,0.0187074]
[1732769329638,0.0017152,95728.0,95726.0,0.104464]
[1732769329854,0.0017152,95728.0,95725.0,0.0187074]
[1732769330076,0.0017152,95728.0,95725.0,0.1231724]
[1732769330296,0.0017152,95728.0,95725.0,0.0187074]
[1732769330500,0.0017152,95728.0,95726.0,0.104464]
[1732769330734,0.0017152,95728.0,95725.0,0.0187074]
[1732769330939,0.104464,95727.0,95725.0,0.0187074]
[1732769331609,0.0027152,95728.0,95725.0,0.0187074]
[1732769332269,0.0017152,95728.0,95725.0,0.0197074]
[1732769332505,0.105463,95727.0,95725.0,0.0197074]
[1732769332708,0.001,95727.0,95725.0,0.0187074]
[1732769332929,0.105464,95727.0,95725.0,0.0187074]
[1732769333132,0.104464,95726.0,95725.0,0.0187074]
[1732769333366,0.104464,95726.0,95721.0,0.01]
[1732769333367,0.104469,95722.0,95721.0,0.01]
[1732769333604,0.208934,95724.0,95721.0,0.01]
[1732769333844,0.104469,95722.0,95721.0,0.01]
[1732769335247,0.105469,95722.0,95721.0,0.01]
[1732769335695,0.11091447,95722.0,95721.0,0.01]
[1732769338286,0.104473,95719.0,95718.0,0.01]
[1732769338493,0.00644547,95722.0,95721.0,0.01]
[1732769338728,0.105469,95722.0,95721.0,0.01]
[1732769338951,0.001,95722.0,95717.0,0.01]
[1732769339175,0.104469,95722.0,95721.0,0.01]
[1732769340892,0.104473,95719.0,95718.0,0.01]
[1732769341138,0.104473,95718.0,95717.0,0.01]
[1732769344433,0.104473,95718.0,95715.0,0.0087074]
[1732769344434,0.104475,95717.0,95715.0,0.0187074]
[1732769344648,0.104475,95716.0,95715.0,0.0187074]
[1732769345760,0.104475,95716.0,95715.0,0.0207074]
[1732769345982,0.104475,95716.0,95715.0,0.0187074]
[1732769346238,0.104473,95718.0,95715.0,0.0187074]
[1732769346463,0.104473,95718.0,95715.0,0.0207074]
[1732769347142,0.104475,95716.0,95715.0,0.002]
[1732769347377,0.104475,95716.0,95715.0,0.012]
[1732769347585,0.104475,95716.0,95715.0,0.01]
[1732769347827,0.210664,95718.0,95715.0,0.01]
[1732769348037,0.10997968,95716.0,95715.0,0.011]
[1732769348249,0.104475,95716.0,95715.0,0.01]
[1732769348464,0.104479,95713.0,95712.0,0.01]
[1732769348893,0.10834606,95713.0,95712.0,0.01]
[1732769349109,0.10834606,95713.0,95707.0,0.01]
[1732769349110,0.208962,95711.0,95707.0,0.01]
[1732769349338,0.104484,95708.0,95707.0,0.01]
[1732769349572,0.208969,95708.0,95707.0,0.01]
[1732769349797,0.208971,95707.0,95700.0,0.0108578]
[1732769350057,0.208975,95705.0,95701.0,0.0087074]
[1732769350282,0.208975,95705.0,95701.0,0.0187074]
[1732769350283,0.104491,95702.0,95701.0,0.0187074]
[1732769350769,0.11004025,95702.0,95701.0,0.0187074]
[1732769350999,0.00554925,95702.0,95701.0,0.1231994]
[1732769351475,0.11805285,95709.0,95701.0,0.1231994]
[1732769351726,0.01356885,95709.0,95704.0,0.01]
[1732769351955,0.104487,95705.0,95704.0,0.01]
[1732769352167,0.00553978,95708.0,95704.0,0.01]
[1732769352417,0.00553478,95705.0,95704.0,0.01]
[1732769352655,0.104487,95705.0,95704.0,0.01]
[1732769352903,0.00443353,95705.0,95704.0,0.01]
[1732769353353,0.104485,95707.0,95704.0,0.01]
[1732769353587,0.00535124,95705.0,95704.0,0.01]
[1732769353838,0.104485,95708.0,95704.0,0.01]
[1732769354091,0.00535124,95705.0,95704.0,0.1231954]
[1732769354327,0.208942,95721.0,95704.0,0.0187074]
[1732769354559,0.208942,95721.0,95714.0,0.01]
[1732769354560,0.01507235,95718.0,95714.0,0.01]
[1732769354769,0.00536653,95717.0,95714.0,0.01]
[1732769354990,0.00536653,95717.0,95716.0,0.104475]
[1732769355221,0.00536653,95717.0,95715.0,0.00969497]
[1732769355481,0.001716,95718.0,95715.0,0.00969497]
[1732769355697,0.006716,95718.0,95716.0,0.00969497]
[1732769355904,0.00536653,95717.0,95716.0,0.00969497]
[1732769356145,0.00536653,95717.0,95716.0,0.12287737]
[1732769356637,0.001716,95718.0,95717.0,0.12287637]
[1732769359139,0.001716,95718.0,95717.0,0.12472533]
[1732769359736,0.001716,95718.0,95717.0,0.12572533]
[1732769360184,0.001716,95718.0,95717.0,0.12472533]
[1732769361261,0.002716,95718.0,95717.0,0.12572533]
[1732769361501,0.002716,95718.0,95717.0,0.12672533]
[1732769361730,0.002716,95718.0,95717.0,0.12572533]
[1732769362622,0.003716,95718.0,95717.0,0.13072533]
[1732769362847,0.003716,95718.0,95717.0,0.12972533]
[1732769362848,0.002716,95718.0,95717.0,0.12972533]
[1732769363085,0.003716,95718.0,95717.0,0.13072533]
[1732769373140,0.003716,95718.0,95717.0,0.23357054]
[1732769373365,0.003716,95718.0,95717.0,0.47481995]
[1732769373568,0.003716,95718.0,95717.0,0.24172158]
[1732769374239,0.002716,95718.0,95717.0,0.23572158]
[1732769374472,0.001716,95718.0,95717.0,0.23572158]
[1732769374690,0.002716,95718.0,95717.0,0.24072158]
[1732769375757,0.003716,95718.0,95717.0,0.24572158]
[1732769376623,0.003716,95718.0,95717.0,0.39572158]
[1732769379007,0.003716,95718.0,95717.0,0.40958515]
[1732769379890,0.00298566,95718.0,95717.0,0.41958515]
[1732769380370,0.0017152,95728.0,95717.0,0.41958515]
[1732769380371,0.0017152,95728.0,95727.0,0.28286537]
[1732769380574,0.0017166,95751.0,95750.0,0.12284037]
[1732769380789,0.0017166,95751.0,95750.0,0.12468874]
[1732769382066,0.0027166,95751.0,95750.0,0.13068874]
[1732769383659,0.0027166,95751.0,95750.0,0.23353395]
[1732769383894,0.0027166,95751.0,95750.0,0.23568558]
[1732769384126,0.0027166,95751.0,95750.0,0.37564926]
[1732769384588,0.0027166,95751.0,95750.0,0.23568558]
[1732769384819,0.0027166,95751.0,95750.0,0.32893133]